[Event "57th Biel Festival MTO 2024"]
[White "Borner,Daniel"]
[Black "Malli,Shiivesh Sunil"]
[Site "Biel"]
[Round "3.55"]
[Annotator "RC"]
[Result "0-1"]
[Date "2024.07.17"]
[WhiteElo "2075"]
[BlackElo "1916"]
[PlyCount "93"]
[TimeControl "60"]

1. e4 {[%emt 0:0:16]} c5 {[%emt 0:0:12]} 2. Nf3 {[%emt 0:1:23]} Nc6 {[%emt 0:0:10]} 3. d4 {[%emt 0:1:46]} cxd4 {[%emt 0:0:7]} 4. Nxd4 {[%emt 0:0:3]} g6 {[%emt 0:0:9]} 5. c4 {[%emt 0:1:14]} Bg7 {[%emt 0:0:6]} 6. Be3 {[%emt 0:0:10]} d6 {[%emt 0:0:24]} 7. Nc3 {[%emt 0:0:40]} Nf6 {[%emt 0:0:8]} 8. Be2 {[%emt 0:1:56]} O-O {[%emt 0:3:41]} 9. Qd2 {[%emt 0:1:29]} Ng4 {[%emt 0:1:9]} 10. Bxg4 {[%emt 0:0:25]} Bxg4 {[%emt 0:0:13]} 11. O-O {[%emt 0:0:35]} a6 {[%emt 0:4:26]} 12. f3 {[%emt 0:9:5]} Bd7 {[%emt 0:0:38]} 13. Rfd1 {[%emt 0:1:24]} Qa5 {[%emt 0:6:14]} 14. Nd5 {[%emt 0:4:48]} Qxd2 {[%emt 0:2:25]} 15. Rxd2 {[%emt 0:0:9]} Rae8 {[%emt 0:0:56]} 16. Nb6 {[%emt 0:2:44]} Bc8 {[%emt 0:2:22]} 17. Rad1 {[%emt 0:13:12]} Nxd4 {[%emt 0:3:13]} 18. Bxd4 {[%emt 0:0:19]} Bxd4+ {[%emt 0:0:25]} 19. Rxd4 {[%emt 0:0:2]} Be6 {[%emt 0:0:40]} 20. R4d3 {[%emt 0:10:5]} f5 {[%emt 0:3:33]} 21. exf5 {[%emt 0:0:39]} Rxf5 {[%emt 0:1:18]} 22. Re1 {[%emt 0:2:48]} Kf7 {[%emt 0:1:3]} 23. Rde3 {[%emt 0:1:20]} Re5 {[%emt 0:1:45]} 24. Rxe5 {[%emt 0:9:54]} dxe5 {[%emt 0:0:8]} 25. Rd1 {[%emt 0:0:22]} Kf6 {[%emt 0:1:44]} 26. Kf2 {[%emt 0:0:28]} h5 {[%emt 0:1:20]} 27. h4 {[%emt 0:8:12]} Rg8 {[%emt 0:0:39]} 28. b3 {[%emt 0:1:38]} Re8 {[%emt 0:3:36]} 29. Ke3 {[%emt 0:4:29]} Rg8 {[%emt 0:4:17]} 30. Nd7+ {[%emt 0:4:25]} Bxd7 {[%emt 0:4:28]} 31. Rxd7 {[%emt 0:0:1]} Rb8 {[%emt 0:0:11]} 32. Ke4 {[%emt 0:1:21]} e6 {[%emt 0:1:57]} 33. g4 {[%emt 0:2:11]} g5 {[%emt 0:1:0]} 34. hxg5+ {[%emt 0:0:44]} Kxg5 {[%emt 0:0:10]} 35. gxh5 {[%emt 0:0:15]} b5 {[%emt 0:1:36]} 36. c5 {[%emt 0:1:23]} Rc8 {[%emt 0:0:21]} 37. b4 {[%emt 0:0:15]} a5 {[%emt 0:0:5]} 38. a3 {[%emt 0:0:24]} axb4 {[%emt 0:0:5]} 39. axb4 {[%emt 0:0:1]} Rf8 {[%emt 0:0:13]} 40. Kxe5 {[%emt 0:1:37]} Rxf3 {[%emt 0:0:55]} 41. Kxe6 {[%emt 0:53:59]} Rb3 {[%emt 0:50:29]} 42. Rd4 {[%emt 0:0:33]} Rc3 {[%emt 0:0:25]} 43. Kd5 {[%emt 0:0:25]} Kxh5 {[%emt 0:0:9]} 44. Kc6 {[%emt 0:0:7]} Rc4 {[%emt 0:0:29]} 45. Rd5+ {[%emt 0:0:6]} Kg6 {[%emt 0:0:6]} 46. Kxb5 {[%emt 0:0:4]} Rc1 {[%emt 0:0:6]} 47. Re5 {[%emt 0:0:53]} 0-1

[Event "57th Biel Festival MTO 2024"]
[White "Pappier,Carlos"]
[Black "Pisan,Kai"]
[Site "Biel"]
[Round "3.56"]
[Annotator "RC"]
[Result "0-1"]
[Date "2024.07.17"]
[WhiteElo "2202"]
[BlackElo "1950"]
[PlyCount "73"]
[TimeControl "60"]

1. d4 {[%emt 0:0:4]} d5 {[%emt 0:0:6]} 2. Nf3 {[%emt 0:1:11]} Nf6 {[%emt 0:0:9]} 3. c4 {[%emt 0:0:14]} c6 {[%emt 0:0:7]} 4. Qc2 {[%emt 0:0:43]} dxc4 {[%emt 0:0:15]} 5. Qxc4 {[%emt 0:0:9]} Bf5 {[%emt 0:0:6]} 6. g3 {[%emt 0:0:23]} e6 {[%emt 0:0:6]} 7. Bg2 {[%emt 0:0:9]} Be7 {[%emt 0:0:36]} 8. O-O {[%emt 0:0:42]} O-O {[%emt 0:0:14]} 9. e3 {[%emt 0:1:44]} Nbd7 {[%emt 0:0:40]} 10. Rd1 {[%emt 0:8:30]} Qb6 {[%emt 0:1:37]} 11. Nc3 {[%emt 0:2:46]} Ne4 {[%emt 0:4:30]} 12. Qe2 {[%emt 0:5:27]} Rfd8 {[%emt 0:9:0]} 13. Ne1 {[%emt 0:2:42]} Nxc3 {[%emt 0:7:55]} 14. bxc3 {[%emt 0:0:9]} Nf6 {[%emt 0:3:0]} 15. e4 {[%emt 0:1:46]} Bg6 {[%emt 0:0:43]} 16. f3 {[%emt 0:6:23]} Rd7 {[%emt 0:3:58]} 17. Nd3 {[%emt 0:3:45]} Qa6 {[%emt 0:3:48]} 18. Bf1 {[%emt 0:1:44]} Rc8 {[%emt 0:4:43]} 19. Be3 {[%emt 0:6:34]} Ne8 {[%emt 0:2:41]} 20. Qb2 {[%emt 0:2:17]} Qa3 {[%emt 0:5:42]} 21. Ne5 {[%emt 0:7:17]} b6 {[%emt 0:5:1]} 22. Nc4 {[%emt 0:16:33]} Rdd8 {[%emt 0:1:49]} 23. Ne5 {[%emt 0:1:34]} Rd7 {[%emt 0:4:18]} 24. Nd3 {[%emt 0:11:17]} f6 {[%emt 0:3:4]} 25. Bh3 {[%emt 0:4:50]} Nd6 {[%emt 0:9:17]} 26. Bf4 {[%emt 0:2:5]} Bf7 {[%emt 0:6:21]} 27. Bxd6 {[%emt 0:6:36]} Bxd6 {[%emt 0:4:56]} 28. e5 {[%emt 0:0:37]} Bb8 {[%emt 0:3:2]} 29. Nf4 {[%emt 0:3:17]} Re8 {[%emt 0:3:42]} 30. exf6 {[%emt 0:1:17]} gxf6 {[%emt 0:8:50]} 31. Re1 {[%emt 0:0:10]} Rde7 {[%emt 0:1:6]} 32. Nd3 {[%emt 0:4:40]} Bg6 {[%emt 0:0:49]} 33. Nf4 {[%emt 0:1:27]} e5 {[%emt 0:2:10]} 34. Nxg6 {[%emt 0:2:13]} hxg6 {[%emt 0:0:18]} 35. Red1 {[%emt 0:0:26]} Kg7 {[%emt 0:0:0]} 36. Bf1 {[%emt 0:0:0]} f5 {[%emt 0:0:0]} 37. g4 {[%emt 0:0:0]} 0-1

[Event "57th Biel Festival MTO 2024"]
[White "Federer,Colin"]
[Black "Arbinger,Roland"]
[Site "Biel"]
[Round "3.57"]
[Annotator "RC"]
[Result "1-0"]
[Date "2024.07.17"]
[WhiteElo "2187"]
[BlackElo "2013"]
[PlyCount "73"]
[TimeControl "60"]

1. e4 {[%emt 0:0:53]} d5 {[%emt 0:0:24]} 2. exd5 {[%emt 0:0:7]} Qxd5 {[%emt 0:0:7]} 3. Nc3 {[%emt 0:0:3]} Qd6 {[%emt 0:0:10]} 4. d4 {[%emt 0:0:4]} Nf6 {[%emt 0:0:8]} 5. Nf3 {[%emt 0:0:6]} g6 {[%emt 0:0:10]} 6. Ne5 {[%emt 0:10:48]} Bg7 {[%emt 0:0:25]} 7. Bf4 {[%emt 0:5:39]} Qd8 {[%emt 0:0:49]} 8. Qd2 {[%emt 0:1:4]} c6 {[%emt 0:3:59]} 9. O-O-O {[%emt 0:0:40]} Be6 {[%emt 0:0:27]} 10. Kb1 {[%emt 0:4:6]} Nbd7 {[%emt 0:1:58]} 11. Bh6 {[%emt 0:1:53]} Bxh6 {[%emt 0:4:26]} 12. Qxh6 {[%emt 0:0:56]} Qc7 {[%emt 0:0:10]} 13. Nxd7 {[%emt 0:2:18]} Qxd7 {[%emt 0:0:49]} 14. Be2 {[%emt 0:6:1]} O-O-O {[%emt 0:2:5]} 15. Rhe1 {[%emt 0:1:49]} Qc7 {[%emt 0:2:36]} 16. h3 {[%emt 0:4:57]} Qa5 {[%emt 0:3:17]} 17. a3 {[%emt 0:2:15]} Rd7 {[%emt 0:2:57]} 18. Qe3 {[%emt 0:3:42]} Rhd8 {[%emt 0:1:59]} 19. f4 {[%emt 0:1:13]} h5 {[%emt 0:6:19]} 20. Bf3 {[%emt 0:4:13]} Nd5 {[%emt 0:1:18]} 21. Bxd5 {[%emt 0:2:3]} Bxd5 {[%emt 0:0:55]} 22. Qf2 {[%emt 0:6:14]} e6 {[%emt 0:7:42]} 23. g4 {[%emt 0:5:41]} hxg4 {[%emt 0:1:12]} 24. hxg4 {[%emt 0:0:11]} b5 {[%emt 0:0:35]} 25. f5 {[%emt 0:11:28]} gxf5 {[%emt 0:1:13]} 26. gxf5 {[%emt 0:0:7]} b4 {[%emt 0:3:17]} 27. axb4 {[%emt 0:2:54]} Qxb4 {[%emt 0:0:38]} 28. Nxd5 {[%emt 0:0:12]} exd5 {[%emt 0:1:54]} 29. Rd3 {[%emt 0:1:28]} Rb7 {[%emt 0:3:11]} 30. Rb3 {[%emt 0:0:57]} Qd6 {[%emt 0:0:12]} 31. Rxb7 {[%emt 0:1:21]} Kxb7 {[%emt 0:0:2]} 32. Qe3 {[%emt 0:1:8]} Rd7 {[%emt 0:3:15]} 33. Qe8 {[%emt 0:0:40]} Rc7 {[%emt 0:1:23]} 34. Re3 {[%emt 0:0:37]} Qd7 {[%emt 0:4:7]} 35. Rb3+ {[%emt 0:0:37]} Ka6 {[%emt 0:0:2]} 36. Qe2+ {[%emt 0:0:10]} Ka5 {[%emt 0:0:43]} 37. Ra3+ {[%emt 0:0:4]} 1-0

[Event "57th Biel Festival MTO 2024"]
[White "Douguet,Claude"]
[Black "Demchenko,Svitlana"]
[Site "Biel"]
[Round "3.58"]
[Annotator "RC"]
[Result "0-1"]
[Date "2024.07.17"]
[WhiteElo "1994"]
[BlackElo "2176"]
[PlyCount "21"]
[TimeControl "60"]

1. e4 {[%emt 0:0:4]} d5 {[%emt 0:0:0]} 2. exd5 {[%emt 0:4:19]} Nf6 {[%emt 0:0:23]} 3. d4 {[%emt 0:0:30]} Bg4 {[%emt 0:0:30]} 4. Be2 {[%emt 0:0:30]} Bxe2 {[%emt 0:8:51]} 5. Qxe2 {[%emt 0:16:5]} Qxd5 {[%emt 0:0:30]} 6. Nf3 {[%emt 0:0:30]} e6 {[%emt 0:0:30]} 7. O-O {[%emt 0:0:30]} Nc6 {[%emt 0:0:30]} 8. Rd1 {[%emt 0:0:30]} O-O-O {[%emt 0:0:30]} 9. Nc3 {[%emt 0:0:30]} Qh5 {[%emt 0:0:30]} 10. Bf4 {[%emt 0:0:2]} Rg8 {[%emt 0:9:3]} 11. Ne4 {[%emt 0:20:46]} 0-1

[Event "57th Biel Festival MTO 2024"]
[White "Nurgaliyeva,Zarina"]
[Black "Hartmann,Wolfgang"]
[Site "Biel"]
[Round "3.59"]
[Annotator "RC"]
[Result "1-0"]
[Date "2024.07.17"]
[WhiteElo "2145"]
[BlackElo "1983"]
[PlyCount "75"]
[TimeControl "60"]

1. e4 {[%emt 0:7:42]} c5 {[%emt 0:0:0]} 2. Nf3 {[%emt 0:0:9]} Nc6 {[%emt 0:0:0]} 3. Bb5 {[%emt 0:13:36]} g6 {[%emt 0:4:14]} 4. O-O {[%emt 0:0:30]} Bg7 {[%emt 0:0:30]} 5. Nc3 {[%emt 0:0:30]} e5 {[%emt 0:0:30]} 6. a3 {[%emt 0:0:30]} Nge7 {[%emt 0:0:30]} 7. b4 {[%emt 0:0:30]} d6 {[%emt 0:0:30]} 8. bxc5 {[%emt 0:0:30]} dxc5 {[%emt 0:0:30]} 9. d3 {[%emt 0:0:30]} O-O {[%emt 0:0:30]} 10. Bc4 {[%emt 0:0:30]} h6 {[%emt 0:0:30]} 11. Rb1 {[%emt 0:0:30]} b6 {[%emt 0:0:30]} 12. Nd5 {[%emt 0:0:30]} Nxd5 {[%emt 0:0:30]} 13. Bxd5 {[%emt 0:0:30]} Bd7 {[%emt 0:0:30]} 14. Bb2 {[%emt 0:0:30]} Qe7 {[%emt 0:0:30]} 15. Nd2 {[%emt 0:8:31]} Rad8 {[%emt 0:13:45]} 16. Nc4 {[%emt 0:6:41]} Nd4 {[%emt 0:7:1]} 17. Ne3 {[%emt 0:6:8]} Be6 {[%emt 0:17:23]} 18. a4 {[%emt 0:5:33]} Bxd5 {[%emt 0:7:33]} 19. Nxd5 {[%emt 0:0:32]} Qd6 {[%emt 0:9:44]} 20. Bxd4 {[%emt 0:9:49]} cxd4 {[%emt 0:10:4]} 21. a5 {[%emt 0:0:46]} bxa5 {[%emt 0:0:44]} 22. Ra1 {[%emt 0:1:20]} Qc5 {[%emt 0:8:10]} 23. Qd2 {[%emt 0:0:45]} Rb8 {[%emt 0:7:23]} 24. Rxa5 {[%emt 0:5:57]} Rb5 {[%emt 0:0:45]} 25. Rxb5 {[%emt 0:18:50]} Qxb5 {[%emt 0:0:6]} 26. c4 {[%emt 0:0:56]} dxc3 {[%emt 0:0:39]} 27. Qxc3 {[%emt 0:1:23]} Rb8 {[%emt 0:3:58]} 28. h4 {[%emt 0:5:13]} Qb2 {[%emt 0:5:55]} 29. Qa5 {[%emt 0:1:50]} Qd4 {[%emt 0:1:36]} 30. h5 {[%emt 0:9:31]} Qxd3 {[%emt 0:3:37]} 31. hxg6 {[%emt 0:2:16]} fxg6 {[%emt 0:0:42]} 32. Qxa7 {[%emt 0:2:21]} Rb1 {[%emt 0:2:16]} 33. Qa8+ {[%emt 0:0:38]} Kh7 {[%emt 0:0:13]} 34. Rxb1 {[%emt 0:0:21]} Qxb1+ {[%emt 0:0:6]} 35. Kh2 {[%emt 0:0:1]} h5 {[%emt 0:3:27]} 36. Qc6 {[%emt 0:1:2]} Qb8 {[%emt 0:1:6]} 37. Ne7 {[%emt 0:0:29]} Qf8 {[%emt 0:2:31]} 38. Qxg6+ {[%emt 0:0:12]} 1-0

[Event "57th Biel Festival MTO 2024"]
[White "Kuandykuly,Danis"]
[Black "Udelnov,Valentin"]
[Site "Biel"]
[Round "3.60"]
[Annotator "RC"]
[Result "1-0"]
[Date "2024.07.17"]
[WhiteElo "1989"]
[BlackElo "1965"]
[PlyCount "68"]
[TimeControl "60"]

1. e4 {[%emt 0:3:18]} e5 {[%emt 0:0:42]} 2. Nf3 {[%emt 0:0:7]} Nc6 {[%emt 0:0:5]} 3. Bb5 {[%emt 0:0:3]} a6 {[%emt 0:0:3]} 4. Ba4 {[%emt 0:0:4]} Nf6 {[%emt 0:0:8]} 5. O-O {[%emt 0:0:6]} Nxe4 {[%emt 0:2:32]} 6. d4 {[%emt 0:0:4]} b5 {[%emt 0:0:32]} 7. Bb3 {[%emt 0:0:5]} d5 {[%emt 0:0:10]} 8. dxe5 {[%emt 0:0:6]} Be6 {[%emt 0:0:21]} 9. c3 {[%emt 0:0:10]} Be7 {[%emt 0:0:51]} 10. Nbd2 {[%emt 0:0:6]} O-O {[%emt 0:1:25]} 11. Bc2 {[%emt 0:0:15]} Nc5 {[%emt 0:10:45]} 12. Nb3 {[%emt 0:0:7]} Ne4 {[%emt 0:5:47]} 13. Nbd4 {[%emt 0:3:25]} Nxd4 {[%emt 0:5:47]} 14. Nxd4 {[%emt 0:2:26]} Bd7 {[%emt 0:32:40]} 15. f3 {[%emt 0:3:51]} Ng5 {[%emt 0:1:16]} 16. f4 {[%emt 0:10:50]} Ne4 {[%emt 0:1:27]} 17. f5 {[%emt 0:3:28]} Bg5 {[%emt 0:8:12]} 18. Qh5 {[%emt 0:11:52]} g6 {[%emt 0:11:25]} 19. Qg4 {[%emt 0:15:30]} c5 {[%emt 0:8:41]} 20. Bxe4 {[%emt 0:2:43]} Bxc1 {[%emt 0:0:11]} 21. Raxc1 {[%emt 0:0:8]} cxd4 {[%emt 0:0:15]} 22. Bb1 {[%emt 0:3:10]} dxc3 {[%emt 0:3:35]} 23. e6 {[%emt 0:4:31]} cxb2 {[%emt 0:3:55]} 24. Rce1 {[%emt 0:0:59]} fxe6 {[%emt 0:0:33]} 25. fxg6 {[%emt 0:0:14]} h6 {[%emt 0:0:20]} 26. Rf7 {[%emt 0:8:15]} Qc7 {[%emt 0:9:23]} 27. Qh4 {[%emt 0:2:52]} Qc5+ {[%emt 0:0:28]} 28. Kh1 {[%emt 0:0:9]} Qc1 {[%emt 0:0:44]} 29. Rg7+ {[%emt 0:2:52]} Kh8 {[%emt 0:0:35]} 30. Rh7+ {[%emt 0:0:30]} Kg8 {[%emt 0:0:4]} 31. h3 {[%emt 0:0:32]} Rac8 {[%emt 0:1:32]} 32. Qd4 {[%emt 0:1:11]} Qxe1+ {[%emt 0:0:30]} 33. Kh2 {[%emt 0:0:2]} Rf6 {[%emt 0:1:34]} 34. Qxf6 {[%emt 0:0:11]} Qf2 {[%emt 0:1:2]} 1-0

[Event "57th Biel Festival MTO 2024"]
[White "Stevens,Christian"]
[Black "Tarini Goyal"]
[Site "Biel"]
[Round "3.61"]
[Annotator "RC"]
[Result "1/2-1/2"]
[Date "2024.07.17"]
[WhiteElo "1936"]
[BlackElo "2079"]
[PlyCount "74"]
[TimeControl "60"]

1. e4 {[%emt 0:0:6]} c5 {[%emt 0:11:4]} 2. Nc3 {[%emt 0:0:17]} Nc6 {[%emt 0:1:26]} 3. g3 {[%emt 0:0:8]} g6 {[%emt 0:0:6]} 4. Bg2 {[%emt 0:0:5]} Bg7 {[%emt 0:0:4]} 5. d3 {[%emt 0:0:9]} d6 {[%emt 0:0:5]} 6. Nd5 {[%emt 0:2:10]} e6 {[%emt 0:1:15]} 7. Ne3 {[%emt 0:0:6]} Nge7 {[%emt 0:1:27]} 8. f4 {[%emt 0:0:54]} O-O {[%emt 0:6:26]} 9. Nf3 {[%emt 0:0:55]} Rb8 {[%emt 0:13:30]} 10. O-O {[%emt 0:0:52]} d5 {[%emt 0:7:53]} 11. e5 {[%emt 0:4:5]} b5 {[%emt 0:3:53]} 12. d4 {[%emt 0:10:11]} cxd4 {[%emt 0:5:14]} 13. Nxd4 {[%emt 0:1:55]} Qb6 {[%emt 0:2:12]} 14. c3 {[%emt 0:2:9]} b4 {[%emt 0:10:23]} 15. Kh1 {[%emt 0:7:18]} Nxd4 {[%emt 0:7:35]} 16. Qxd4 {[%emt 0:6:43]} bxc3 {[%emt 0:6:18]} 17. bxc3 {[%emt 0:0:45]} Qxd4 {[%emt 0:0:26]} 18. cxd4 {[%emt 0:0:7]} Ba6 {[%emt 0:0:6]} 19. Rd1 {[%emt 0:7:12]} Rfc8 {[%emt 0:2:0]} 20. Ba3 {[%emt 0:7:4]} Nc6 {[%emt 0:0:48]} 21. Rac1 {[%emt 0:16:10]} Bf8 {[%emt 0:3:37]} 22. Bxf8 {[%emt 0:8:14]} Kxf8 {[%emt 0:0:8]} 23. Rd2 {[%emt 0:1:42]} Na5 {[%emt 0:13:41]} 24. Rxc8+ {[%emt 0:1:19]} Rxc8 {[%emt 0:0:5]} 25. Kg1 {[%emt 0:0:34]} Rc1+ {[%emt 0:2:26]} 26. Kf2 {[%emt 0:0:45]} Nc4 {[%emt 0:1:21]} 27. Nxc4 {[%emt 0:8:7]} Bxc4 {[%emt 0:3:20]} 28. g4 {[%emt 0:3:34]} Ra1 {[%emt 0:0:31]} 29. h4 {[%emt 0:5:53]} Rxa2 {[%emt 0:0:22]} 30. Rxa2 {[%emt 0:0:51]} Bxa2 {[%emt 0:0:5]} 31. Ke3 {[%emt 0:0:31]} Bc4 {[%emt 0:1:22]} 32. Kd2 {[%emt 0:1:0]} Ke7 {[%emt 0:2:33]} 33. Bf3 {[%emt 0:2:30]} Kd7 {[%emt 0:0:59]} 34. Kc3 {[%emt 0:2:20]} a5 {[%emt 0:0:8]} 35. Bd1 {[%emt 0:0:38]} Bb5 {[%emt 0:0:37]} 36. Bc2 {[%emt 0:1:3]} Ke7 {[%emt 0:1:36]} 37. g5 {[%emt 0:0:52]} Kd8 {[%emt 0:1:50]} 1/2-1/2

[Event "57th Biel Festival MTO 2024"]
[White "Perreard,Nicolas"]
[Black "Stefan,Iulia-Cristiana"]
[Site "Biel"]
[Round "3.62"]
[Annotator "RC"]
[Result "1-0"]
[Date "2024.07.17"]
[WhiteElo "2060"]
[BlackElo "1953"]
[PlyCount "32"]
[TimeControl "60"]

1. d4 {[%emt 0:0:7]} d5 {[%emt 0:0:10]} 2. c4 {[%emt 0:0:4]} e6 {[%emt 0:0:6]} 3. Nf3 {[%emt 0:0:30]} h6 {[%emt 0:0:10]} 4. Nc3 {[%emt 0:0:43]} Nf6 {[%emt 0:0:8]} 5. Bf4 {[%emt 0:5:4]} Bd6 {[%emt 0:0:7]} 6. Bxd6 {[%emt 0:0:43]} Qxd6 {[%emt 0:0:5]} 7. c5 {[%emt 0:0:5]} Qe7 {[%emt 0:0:7]} 8. e3 {[%emt 0:0:49]} O-O {[%emt 0:0:32]} 9. Be2 {[%emt 0:1:35]} c6 {[%emt 0:1:51]} 10. O-O {[%emt 0:1:20]} Nbd7 {[%emt 0:0:22]} 11. b4 {[%emt 0:2:23]} e5 {[%emt 0:14:18]} 12. a4 {[%emt 0:6:46]} e4 {[%emt 0:6:17]} 13. Nd2 {[%emt 0:0:30]} Nh7 {[%emt 0:0:30]} 14. b5 {[%emt 0:0:30]} f5 {[%emt 0:0:30]} 15. Qb3 {[%emt 0:0:30]} Kh8 {[%emt 0:0:30]} 16. a5 {[%emt 0:0:31]} a6 {[%emt 0:11:50]} 1-0

[Event "57th Biel Festival MTO 2024"]
[White "Kheerthi Ganta"]
[Black "Selinga,Jan"]
[Site "Biel"]
[Round "3.63"]
[Annotator "RC"]
[Result "1/2-1/2"]
[Date "2024.07.17"]
[WhiteElo "1987"]
[BlackElo "2023"]
[PlyCount "77"]
[TimeControl "60"]

1. d4 {[%emt 0:0:14]} Nf6 {[%emt 0:2:45]} 2. Nf3 {[%emt 0:1:6]} g6 {[%emt 0:0:23]} 3. c4 {[%emt 0:0:47]} Bg7 {[%emt 0:0:26]} 4. Nc3 {[%emt 0:1:38]} d5 {[%emt 0:0:16]} 5. cxd5 {[%emt 0:1:8]} Nxd5 {[%emt 0:0:9]} 6. e4 {[%emt 0:1:4]} Nxc3 {[%emt 0:0:35]} 7. bxc3 {[%emt 0:0:10]} c5 {[%emt 0:0:23]} 8. Bb5+ {[%emt 0:2:14]} Nc6 {[%emt 0:1:53]} 9. d5 {[%emt 0:2:14]} Qa5 {[%emt 0:1:27]} 10. Rb1 {[%emt 0:1:21]} a6 {[%emt 0:2:52]} 11. Bxc6+ {[%emt 0:0:11]} bxc6 {[%emt 0:0:2]} 12. dxc6 {[%emt 0:0:15]} Bxc3+ {[%emt 0:5:44]} 13. Bd2 {[%emt 0:0:9]} Be6 {[%emt 0:4:32]} 14. Rc1 {[%emt 0:0:21]} Bxd2+ {[%emt 0:13:51]} 15. Qxd2 {[%emt 0:0:9]} Qb4 {[%emt 0:3:43]} 16. O-O {[%emt 0:0:17]} Qxd2 {[%emt 0:0:55]} 17. Nxd2 {[%emt 0:0:7]} O-O-O {[%emt 0:5:47]} 18. Nb3 {[%emt 0:0:10]} Bxb3 {[%emt 0:3:46]} 19. axb3 {[%emt 0:0:9]} Kc7 {[%emt 0:1:25]} 20. Rxc5 {[%emt 0:0:58]} Rd6 {[%emt 0:0:51]} 21. Rfc1 {[%emt 0:4:58]} Rb8 {[%emt 0:12:23]} 22. R5c3 {[%emt 0:0:17]} Rb6 {[%emt 0:1:21]} 23. Kf1 {[%emt 0:0:31]} Rd2 {[%emt 0:1:38]} 24. Ra1 {[%emt 0:1:44]} Rb2 {[%emt 0:6:4]} 25. g3 {[%emt 0:1:53]} h5 {[%emt 0:0:48]} 26. h4 {[%emt 0:0:10]} Rd2 {[%emt 0:1:42]} 27. Ra4 {[%emt 0:5:3]} Rd6 {[%emt 0:2:10]} 28. Ke2 {[%emt 0:0:23]} Rdxc6 {[%emt 0:0:10]} 29. Rac4 {[%emt 0:0:8]} Rxc4 {[%emt 0:0:40]} 30. Rxc4+ {[%emt 0:0:7]} Kd6 {[%emt 0:0:35]} 31. b4 {[%emt 0:0:27]} f5 {[%emt 0:5:26]} 32. Ke3 {[%emt 0:0:25]} e5 {[%emt 0:2:20]} 33. f4 {[%emt 0:1:11]} Rb5 {[%emt 0:3:11]} 34. Kf3 {[%emt 0:0:32]} exf4 {[%emt 0:2:3]} 35. Kxf4 {[%emt 0:1:0]} fxe4 {[%emt 0:0:27]} 36. Kxe4 {[%emt 0:0:10]} Re5+ {[%emt 0:0:53]} 37. Kf4 {[%emt 0:0:10]} Rf5+ {[%emt 0:0:9]} 38. Ke3 {[%emt 0:0:5]} Rf1 {[%emt 0:4:47]} 39. g4 {[%emt 0:0:7]} 1/2-1/2

[Event "57th Biel Festival MTO 2024"]
[White "Sasikiran,Krishnan"]
[Black "Kobo,Ori"]
[Site "Biel"]
[Round "4.1"]
[Annotator "TA"]
[Result "1/2-1/2"]
[Date "2024.07.18"]
[WhiteElo "2581"]
[BlackElo "2529"]
[PlyCount "126"]
[TimeControl "60"]

{[%evp 26,126,20,21,36,13,22,27,23,22,35,20,30,14,12,9,15,6,19,2,70,0,47,54,47,45,65,39,33,45,68,15,23,0,25,14,7,14,12,22,29,20,93,75,95,33,36,44,43,27,18,0,0,0,0,-37,-10,-16,-12,-18,-19,-8,-8,-12,-10,-9,0,0,0,0,0,0,0,0,0,0,8,8,12,0,0,0,0,0,0,0,0,0,8,8,8,0,0,0,0,0,0,0,0,0,8,8,8]} 1. e4 {[%emt 0:0:13]} e5 {[%emt 0:1:35]} 2. Nf3 {[%emt 0:0:11]} Nc6 {[%emt 0:0:5]} 3. Bb5 {[%emt 0:0:12]} a6 {[%emt 0:0:16]} 4. Ba4 {[%emt 0:0:7]} Nf6 {[%emt 0:0:14]} 5. O-O {[%emt 0:0:11]} Be7 {[%emt 0:0:23]} 6. Re1 {[%emt 0:0:12]} b5 {[%emt 0:0:13]} 7. Bb3 {[%emt 0:0:5]} d6 {[%emt 0:0:48]} 8. c3 {[%emt 0:0:29]} O-O {[%emt 0:0:17]} 9. h3 {[%emt 0:0:40]} Nb8 {[%emt 0:0:17]} 10. d4 {[%emt 0:0:36]} Nbd7 {[%emt 0:0:13]} 11. Nbd2 {[%emt 0:0:22]} Bb7 {[%emt 0:0:11]} 12. Bc2 {[%emt 0:0:18]} Re8 {[%emt 0:0:11]} 13. Nf1 {[%emt 0:1:2]} Bf8 {[%emt 0:0:10]} 14. Ng3 {[%emt 0:0:8]} a5 {[%emt 0:0:9]} 15. Bd2 {[%emt 0:5:0]} a4 {[%emt 0:0:16]} 16. Bd3 {[%emt 0:1:2]} c6 {[%emt 0:0:14] White has an edge.} 17. Qc2 {[%emt 0:12:13]} Qb6 {[%emt 0:0:19]} 18. Rab1 {[%emt 0:4:10]} g6 {[%emt 0:15:42]} 19. Be3 {[%emt 0:7:38] Hoping for dxe5.} exd4 {[%emt 0:12:27]} 20. cxd4 {[%emt 0:7:11]} c5 {[%emt 0:0:34]} 21. b3 {[%emt 0:3:23]} axb3 {[%emt 0:19:17]} 22. axb3 {[%emt 0:5:59]} Qa5 {[%emt 0:16:45]} (22... b4 $11 )23. d5 {[%emt 0:15:8]} (23. b4 $1 $14 cxb4 24. Nd2 )Bg7 {[%emt 0:7:43] [#]} (23... b4 $11 )24. b4 $1 $14 {[%emt 0:10:14]} cxb4 {[%emt 0:0:47]} 25. Bd2 {[%emt 0:0:39]} Rac8 {[%emt 0:11:44]} 26. Bxb4 {[%emt 0:5:33] White is more active.} Qb6 $1 {[%emt 0:0:14]} 27. Qd2 {[%emt 0:7:37] Ba5 is the strong threat.} Nc5 {[%emt 0:0:12]} 28. Bc2 {[%emt 0:1:30]} (28. Ba3 $14 )Nfd7 {[%emt 0:8:14]} (28... Ra8 {is interesting.} 29. Bc3 Ra2 30. Bd4 Qa5 )29. h4 {[%emt 0:7:44]} Ne5 {[%emt 0:3:49]} 30. Nxe5 {[%emt 0:1:44]} Bxe5 {[%emt 0:0:8]} 31. Ba5 {[%emt 0:1:58]} Qa7 {[%emt 0:1:22] White must now prevent ...Bxg3.} 32. Nf1 {[%emt 0:2:4][%cal Bg3f1,Bf1h2,Bh2f3][%mdl 32]} Ba6 {[%emt 0:2:31]} 33. Nh2 {[%emt 0:4:11]} Na4 {[%emt 0:3:15] [#]} (33... Nb7 $11 {remains equal.} 34. Bb4 Bg7 )34. Nf3 $1 $16 {[%emt 0:4:21]} Bg7 {[%emt 0:1:9]} 35. Bd3 {[%emt 0:0:49]} (35. h5 $16 )Nc5 $14 {[%emt 0:2:37]} 36. Bb4 {[%emt 0:1:0][%cal Oh4h5]} ({Much worse is} 36. Bxb5 Bxb5 (36... Rxe4 37. Bc6 $15 )(36... Nxe4 37. Qe3 $11 )37. Rxb5 Nxe4 $15 )Qd7 {[%emt 0:1:53] [#]} 37. h5 $1 {[%emt 0:1:34]} Qg4 $1 {[%emt 0:2:3]} 38. h6 {[%emt 0:0:58]} Bxh6 {[%emt 0:0:39]} 39. Qxh6 {[%emt 0:0:49]} Nxd3 {[%emt 0:0:2]} 40. Ng5 {[%emt 0:0:38] The board is on fire.} Qh5 {[%emt 0:0:39]} 41. Qxh5 {[%emt 0:50:31] The position is equal.} gxh5 {[%emt 0:50:14]} 42. Re3 {[%emt 0:0:0]} Nxb4 {[%emt 0:0:0]} 43. Rxb4 {[%emt 0:0:0]} Rc4 {[%emt 0:0:0]} 44. Rxc4 {[%emt 0:0:0]} bxc4 $11 {[%emt 0:0:0][%mdl 4096] Endgame. KRB-KRN} 45. Nf3 {[%emt 0:0:0]} Rc8 {[%emt 0:0:0] Strongly threatening ...c3.} 46. Nd4 {[%emt 0:0:0]} Rc5 {[%emt 0:0:0]} 47. Rc3 {[%emt 0:0:0]} Bc8 {[%emt 0:0:0]} 48. f3 {[%emt 0:0:0]} f5 {[%emt 0:0:0]} 49. Kf2 {[%emt 0:0:0]} Kf7 {[%emt 0:0:0]} 50. Ke3 {[%emt 0:0:0]} fxe4 {[%emt 0:0:0]} 51. fxe4 {[%emt 0:0:0]} Kf6 {[%emt 0:0:0]} 52. Kf4 {[%emt 0:0:0][%mdl 1024] White has compensation.} Bd7 {[%emt 0:0:0]} 53. Nc2 {[%emt 0:0:0]} h4 {[%emt 0:0:43]} 54. Ke3 {[%emt 0:1:41]} Rc8 {[%emt 0:3:19]} 55. Kd4 {[%emt 0:1:17][%cal Oc2e3]} Ke7 {[%emt 0:2:58]} 56. Ne3 {[%emt 0:1:5]} h3 {[%emt 0:0:33]} 57. gxh3 {[%emt 0:1:43]} (57. Rxc4 $2 {loses.} Rxc4+ 58. Kxc4 h2 $19 )Bxh3 {[%emt 0:0:5]} 58. Nxc4 {[%emt 0:1:29]} Bf1 {[%emt 0:0:41] And now ...Rxc4+ would win.} 59. Nxd6 {[%emt 0:0:19]} Rxc3 {[%emt 0:0:4]} 60. Nf5+ {[%emt 0:0:3]} Kf6 {[%emt 0:0:34]} 61. Kxc3 {[%emt 0:15:4] Threatens to win with Kd4.} Ke5 {[%emt 0:16:33]} 62. Ne3 {[%emt 0:1:42]} Kxe4 {[%emt 0:0:0]} 63. Nxf1 {[%emt 0:0:0] White threatens d6 and mate.} Kxd5 {[%emt 0:0:0] Weighted Error Value: White=0.10 (very precise) /Black=0.10 (very precise) .  Mistake:       	White=3     	Black=3      Inaccurate:     	White=1     	---        OK:         	White=25    	Black=17     Best:        	---       	Black=5      Strong:       	White=1     	Black=2} 1/2-1/2